[Event "Titled Tuesday Blitz November 08 Early 2022"]
[White "Prydun, Andriy"]
[Black "Bilan, Danila"]
[WhiteFideId "14145898"]
[BlackFideId "24161918"]
[WhiteElo "2163"]
[BlackElo "2173"]
[Result "0-1"]
[Round "09"]
[TimeControl "180+1"]
[Date "2022.11.09"]
[WhiteClock "0:00:03"]
[BlackClock "0:00:04"]

1. d4 {[%clk 0:03:00]}  d5 {[%clk 0:02:58]} 2. Nc3 {[%clk 0:02:59]}  Nf6 {[%clk 0:02:57]} 3. Bf4 {[%clk 0:02:59]}  a6 {[%clk 0:02:57]} 4. e3 {[%clk 0:02:58]}  Bf5 {[%clk 0:02:52]} 5. f3 {[%clk 0:02:57]}  e6 {[%clk 0:02:49]} 6. g4 {[%clk 0:02:56]}  Bg6 {[%clk 0:02:49]} 7. h4 {[%clk 0:02:54]}  h6 {[%clk 0:02:47]} 8. Bd3 {[%clk 0:02:53]}  Bxd3 {[%clk 0:02:44]} 9. cxd3 {[%clk 0:02:53]}  Bd6 {[%clk 0:02:43]} 10. Nge2 {[%clk 0:02:53]}  c5 {[%clk 0:02:21]} 11. dxc5 {[%clk 0:02:46]}  Bxc5 {[%clk 0:02:18]} 12. d4 {[%clk 0:02:46]}  Bd6 {[%clk 0:02:17]} 13. Kf2 {[%clk 0:02:44]}  Nc6 {[%clk 0:02:13]} 14. Rc1 {[%clk 0:02:36]}  O-O {[%clk 0:02:06]} 15. Bxd6 {[%clk 0:02:30]}  Qxd6 {[%clk 0:02:03]} 16. Nf4 {[%clk 0:02:31]}  b5 {[%clk 0:02:00]} 17. g5 {[%clk 0:02:30]}  Nh7 {[%clk 0:01:38]} 18. Qd3 {[%clk 0:02:23]}  Ne7 {[%clk 0:01:30]} 19. Rcg1 {[%clk 0:02:21]}  Kh8 {[%clk 0:01:21]} 20. gxh6 {[%clk 0:01:42]}  gxh6 {[%clk 0:01:20]} 21. Rg5 {[%clk 0:01:35]}  hxg5 {[%clk 0:00:53]} 22. hxg5 {[%clk 0:01:35]}  Ng6 {[%clk 0:00:50]} 23. Rh6 {[%clk 0:00:50]}  Rg8 {[%clk 0:00:28]} 24. Qb1 {[%clk 0:00:41]}  Rg7 {[%clk 0:00:25]} 25. Nce2 {[%clk 0:00:34]}  Kg8 {[%clk 0:00:18]} 26. Qc1 {[%clk 0:00:21]}  Nxg5 {[%clk 0:00:10]} 27. Qh1 {[%clk 0:00:21]}  Kf8 {[%clk 0:00:08]} 28. Qh5 {[%clk 0:00:17]}  Qe7 {[%clk 0:00:06]} 29. Rh8+ {[%clk 0:00:06]}  Nxh8 {[%clk 0:00:06]} 30. Qxh8+ {[%clk 0:00:05]}  Rg8 {[%clk 0:00:07]} 31. Qh6+ {[%clk 0:00:05]}  Ke8 {[%clk 0:00:07]} 32. Nh5 {[%clk 0:00:05]}  Nh3+ {[%clk 0:00:06]} 33. Ke1 {[%clk 0:00:05]}  Kd8 {[%clk 0:00:05]} 34. Nf6 {[%clk 0:00:04]}  Kc7 {[%clk 0:00:04]} 35. Nxg8 {[%clk 0:00:03]}  Rxg8 {[%clk 0:00:03]} 36. Qxh3 {[%clk 0:00:04]}  Qg5 {[%clk 0:00:03]} 37. Qh2+ {[%clk 0:00:03]}  Kd7 {[%clk 0:00:03]} 38. Kf2 {[%clk 0:00:04]}  Qg7 {[%clk 0:00:03]} 39. Qh3 {[%clk 0:00:03]}  Rh8 {[%clk 0:00:03]} 40. Qg2 {[%clk 0:00:03]}  Qxg2+ {[%clk 0:00:03]} 41. Kxg2 {[%clk 0:00:04]}  Rc8 {[%clk 0:00:04]} 42. Nc3 {[%clk 0:00:03]}  b4 {[%clk 0:00:04]} 43. Na4 {[%clk 0:00:03]}  Rc2+ {[%clk 0:00:04]} 44. Kg3 {[%clk 0:00:04]}  a5 {[%clk 0:00:05]} 45. Kf4 {[%clk 0:00:03]}  Kd6 {[%clk 0:00:05]} 46. e4 {[%clk 0:00:03]}  Rc4 {[%clk 0:00:04]} 47. e5+ {[%clk 0:00:03]}  Kc6 {[%clk 0:00:04]} 48. Ke3 {[%clk 0:00:04]}  Kb5 {[%clk 0:00:03]} 49. b3 {[%clk 0:00:04]}  Rc2 {[%clk 0:00:04]} 50. Nc5 {[%clk 0:00:04]}  Rxc5 {[%clk 0:00:04]} 51. dxc5 {[%clk 0:00:04]}  Kxc5 {[%clk 0:00:05]} 52. Kd3 {[%clk 0:00:04]}  Kb5 {[%clk 0:00:02]} 53. Ke3 {[%clk 0:00:04]}  Kc5 {[%clk 0:00:02]} 54. Kd3 {[%clk 0:00:04]}  Kc6 {[%clk 0:00:03]} 55. Ke3 {[%clk 0:00:04]}  Kd7 {[%clk 0:00:03]} 56. Kd3 {[%clk 0:00:03]}  Ke7 {[%clk 0:00:03]} 57. Ke3 {[%clk 0:00:03]}  f6 {[%clk 0:00:04]} 58. f4 {[%clk 0:00:02]}  fxe5 {[%clk 0:00:04]} 59. fxe5 {[%clk 0:00:03]}  Kf7 {[%clk 0:00:04]} 60. Kf3 {[%clk 0:00:03]}  Kg6 {[%clk 0:00:04]} 61. Kg4 {[%clk 0:00:03]}  Kh6 {[%clk 0:00:04]} 62. Kh4 {[%clk 0:00:03]}  Kg6 {[%clk 0:00:05]} 63. Kg4 {[%clk 0:00:03]}  d4 {[%clk 0:00:01]} 64. Kf4 {[%clk 0:00:04]}  Kh5 {[%clk 0:00:01]} 65. Ke4 {[%clk 0:00:03]}  Kg5 {[%clk 0:00:02]} 66. Kxd4 {[%clk 0:00:03]}  Kf4 {[%clk 0:00:03]} 67. Kc5 {[%clk 0:00:03]}  Kxe5 {[%clk 0:00:03]} 68. Kb5 {[%clk 0:00:03]}  Kd4 {[%clk 0:00:03]} 69. Kxa5 {[%clk 0:00:03]}  Kc3 {[%clk 0:00:04]} 70. Kb5 {[%clk 0:00:03]}  e5 {[%clk 0:00:04]} 0-1


[Site "https://www.chess.com"]

[Event "Titled Tuesday Blitz November 08 Early 2022"]
[White "Pultinevicius, Paulius"]
[Black "Dubov, Daniil"]
[WhiteFideId "12809390"]
[BlackFideId "24126055"]
[WhiteElo "2493"]
[BlackElo "2791"]
[Result "0-1"]
[Round "09"]
[TimeControl "180+1"]
[Date "2022.11.08"]
[WhiteClock "0:00:01"]
[BlackClock "0:01:03"]

1. b3 {[%clk 0:03:00]}  e5 {[%clk 0:02:57]} 2. Bb2 {[%clk 0:03:01]}  Nc6 {[%clk 0:02:57]} 3. g3 {[%clk 0:03:01]}  g6 {[%clk 0:02:57]} 4. Bg2 {[%clk 0:03:01]}  Nge7 {[%clk 0:02:58]} 5. Nf3 {[%clk 0:03:00]}  Bg7 {[%clk 0:02:59]} 6. O-O {[%clk 0:03:01]}  O-O {[%clk 0:02:59]} 7. Qc1 {[%clk 0:03:00]}  d5 {[%clk 0:02:58]} 8. d3 {[%clk 0:02:59]}  h6 {[%clk 0:02:57]} 9. Nbd2 {[%clk 0:02:58]}  Be6 {[%clk 0:02:56]} 10. a3 {[%clk 0:02:56]}  a5 {[%clk 0:02:56]} 11. c4 {[%clk 0:02:55]}  d4 {[%clk 0:02:54]} 12. Ne1 {[%clk 0:02:56]}  Qd7 {[%clk 0:02:52]} 13. Nc2 {[%clk 0:02:51]}  Bh3 {[%clk 0:02:52]} 14. b4 {[%clk 0:02:52]}  Bxg2 {[%clk 0:02:52]} 15. Kxg2 {[%clk 0:02:53]}  f5 {[%clk 0:02:52]} 16. b5 {[%clk 0:02:37]}  Nd8 {[%clk 0:02:52]} 17. f4 {[%clk 0:02:37]}  exf4 {[%clk 0:02:34]} 18. Rf2 {[%clk 0:02:32]}  fxg3 {[%clk 0:02:32]} 19. hxg3 {[%clk 0:02:31]}  Ne6 {[%clk 0:02:32]} 20. Qh1 {[%clk 0:02:06]}  Rf7 {[%clk 0:02:19]} 21. Raf1 {[%clk 0:02:02]}  Raf8 {[%clk 0:02:18]} 22. Kg1 {[%clk 0:02:00]}  c6 {[%clk 0:02:16]} 23. a4 {[%clk 0:02:00]}  c5 {[%clk 0:02:12]} 24. Nb3 {[%clk 0:01:50]}  b6 {[%clk 0:02:12]} 25. Bc1 {[%clk 0:01:49]}  Qd6 {[%clk 0:02:01]} 26. Kg2 {[%clk 0:01:13]}  f4 {[%clk 0:01:54]} 27. Bxf4 {[%clk 0:01:06]}  Nxf4+ {[%clk 0:01:53]} 28. Rxf4 {[%clk 0:01:04]}  Rxf4 {[%clk 0:01:54]} 29. Rxf4 {[%clk 0:00:53]}  Rxf4 {[%clk 0:01:53]} 30. gxf4 {[%clk 0:00:54]}  Qxf4 {[%clk 0:01:54]} 31. Qh2 {[%clk 0:00:54]}  Qxh2+ {[%clk 0:01:44]} 32. Kxh2 {[%clk 0:00:54]}  Kf7 {[%clk 0:01:43]} 33. Kg2 {[%clk 0:00:54]}  Nf5 {[%clk 0:01:42]} 34. Kf3 {[%clk 0:00:52]}  g5 {[%clk 0:01:40]} 35. Nd2 {[%clk 0:00:25]}  Be5 {[%clk 0:01:33]} 36. Ne4 {[%clk 0:00:24]}  Kg6 {[%clk 0:01:31]} 37. Na1 {[%clk 0:00:16]}  Ne3 {[%clk 0:01:22]} 38. Nb3 {[%clk 0:00:15]}  g4+ {[%clk 0:01:22]} 39. Kf2 {[%clk 0:00:14]}  h5 {[%clk 0:01:19]} 40. Nexc5 {[%clk 0:00:02]}  bxc5 {[%clk 0:01:19]} 41. Nxc5 {[%clk 0:00:03]}  h4 {[%clk 0:01:19]} 42. Nd7 {[%clk 0:00:03]}  Bg3+ {[%clk 0:01:13]} 43. Kg1 {[%clk 0:00:02]}  h3 {[%clk 0:01:14]} 44. b6 {[%clk 0:00:02]}  h2+ {[%clk 0:01:09]} 45. Kh1 {[%clk 0:00:02]}  Bf4 {[%clk 0:01:10]} 46. b7 {[%clk 0:00:03]}  g3 {[%clk 0:01:10]} 47. b8=Q {[%clk 0:00:01]}  Bxb8 {[%clk 0:01:03]} 48. Nxb8 {[%clk 0:00:01]}  Kf5 {[%clk 0:01:04]} 49. Nc6 {[%clk 0:00:01]}  Kg4 {[%clk 0:01:03]} 50. Nxd4 {[%clk 0:00:02]}  Kh3 {[%clk 0:01:04]} 51. Nf3 {[%clk 0:00:01]}  g2# {[%clk 0:01:03]} 0-1


[Site "https://www.chess.com"]

[Event "Titled Tuesday Blitz November 08 Early 2022"]
[White "Safin, Robert"]
[Black "Wirig, Anthony"]
[WhiteFideId "34189120"]
[BlackFideId "615013"]
[WhiteElo "2538"]
[BlackElo "2779"]
[Result "1-0"]
[Round "09"]
[TimeControl "180+1"]
[Date "2022.11.09"]
[WhiteClock "0:00:02"]
[BlackClock "0:00:03"]

1. d4 {[%clk 0:02:51]}  Nf6 {[%clk 0:02:59]} 2. Nf3 {[%clk 0:02:51]}  d6 {[%clk 0:02:59]} 3. g3 {[%clk 0:02:51]}  Nc6 {[%clk 0:02:59]} 4. Bg2 {[%clk 0:02:51]}  e5 {[%clk 0:02:59]} 5. dxe5 {[%clk 0:02:52]}  dxe5 {[%clk 0:02:58]} 6. Qxd8+ {[%clk 0:02:52]}  Kxd8 {[%clk 0:02:59]} 7. Bg5 {[%clk 0:02:50]}  Be7 {[%clk 0:02:54]} 8. O-O {[%clk 0:02:50]}  Be6 {[%clk 0:02:52]} 9. Rd1+ {[%clk 0:02:49]}  Kc8 {[%clk 0:02:52]} 10. c3 {[%clk 0:02:49]}  Nd7 {[%clk 0:02:39]} 11. Bxe7 {[%clk 0:02:25]}  Nxe7 {[%clk 0:02:40]} 12. Nbd2 {[%clk 0:02:26]}  f6 {[%clk 0:02:39]} 13. Ne4 {[%clk 0:02:26]}  c6 {[%clk 0:02:30]} 14. Rd6 {[%clk 0:02:23]}  Bf5 {[%clk 0:02:05]} 15. Rad1 {[%clk 0:02:22]}  Kc7 {[%clk 0:01:23]} 16. Nh4 {[%clk 0:02:15]}  Rad8 {[%clk 0:01:17]} 17. Nxf5 {[%clk 0:02:02]}  Nxf5 {[%clk 0:01:18]} 18. R6d3 {[%clk 0:01:43]}  Nb6 {[%clk 0:00:58]} 19. Nc5 {[%clk 0:01:42]}  Rxd3 {[%clk 0:00:57]} 20. Rxd3 {[%clk 0:01:43]}  Re8 {[%clk 0:00:54]} 21. Bh3 {[%clk 0:01:42]}  g6 {[%clk 0:00:51]} 22. e4 {[%clk 0:01:39]}  Ng7 {[%clk 0:00:41]} 23. a4 {[%clk 0:01:39]}  a5 {[%clk 0:00:40]} 24. b4 {[%clk 0:01:39]}  Re7 {[%clk 0:00:32]} 25. bxa5 {[%clk 0:01:32]}  Nc4 {[%clk 0:00:32]} 26. a6 {[%clk 0:01:32]}  bxa6 {[%clk 0:00:30]} 27. Nxa6+ {[%clk 0:01:32]}  Kb6 {[%clk 0:00:31]} 28. Nb4 {[%clk 0:01:32]}  f5 {[%clk 0:00:27]} 29. Rd8 {[%clk 0:01:25]}  fxe4 {[%clk 0:00:22]} 30. Rb8+ {[%clk 0:01:25]}  Kc5 {[%clk 0:00:21]} 31. Rc8 {[%clk 0:01:06]}  Na5 {[%clk 0:00:20]} 32. Ra8 {[%clk 0:01:07]}  Nc4 {[%clk 0:00:14]} 33. a5 {[%clk 0:01:05]}  Nf5 {[%clk 0:00:13]} 34. a6 {[%clk 0:01:04]}  e3 {[%clk 0:00:09]} 35. fxe3 {[%clk 0:01:03]}  Nfxe3 {[%clk 0:00:10]} 36. a7 {[%clk 0:00:55]}  Nb6 {[%clk 0:00:09]} 37. Rc8 {[%clk 0:00:22]}  Rxa7 {[%clk 0:00:09]} 38. Rxc6+ {[%clk 0:00:23]}  Kb5 {[%clk 0:00:09]} 39. Kf2 {[%clk 0:00:23]}  Nbc4 {[%clk 0:00:06]} 40. Rc8 {[%clk 0:00:15]}  Rf7+ {[%clk 0:00:05]} 41. Ke2 {[%clk 0:00:15]}  Ka4 {[%clk 0:00:05]} 42. Nd3 {[%clk 0:00:13]}  Kb3 {[%clk 0:00:04]} 43. Be6 {[%clk 0:00:13]}  Re7 {[%clk 0:00:01]} 44. h4 {[%clk 0:00:10]}  Kxc3 {[%clk 0:00:01]} 45. Bg8 {[%clk 0:00:04]}  e4 {[%clk 0:00:02]} 46. Nc5 {[%clk 0:00:05]}  Ra7 {[%clk 0:00:02]} 47. Ne6 {[%clk 0:00:05]}  Ra2+ {[%clk 0:00:03]} 48. Ke1 {[%clk 0:00:05]}  Kd3 {[%clk 0:00:04]} 49. Nc5+ {[%clk 0:00:05]}  Kc3 {[%clk 0:00:04]} 50. Nxe4+ {[%clk 0:00:06]}  Kd3 {[%clk 0:00:04]} 51. Nf2+ {[%clk 0:00:07]}  Kd4 {[%clk 0:00:05]} 52. Rd8+ {[%clk 0:00:07]}  Kc3 {[%clk 0:00:06]} 53. Rd3+ {[%clk 0:00:07]}  Kb4 {[%clk 0:00:06]} 54. Bxc4 {[%clk 0:00:08]}  Nxc4 {[%clk 0:00:07]} 55. Ne4 {[%clk 0:00:08]}  Rg2 {[%clk 0:00:06]} 56. Kf1 {[%clk 0:00:08]}  Rh2 {[%clk 0:00:06]} 57. Nf2 {[%clk 0:00:07]}  Ne5 {[%clk 0:00:05]} 58. Rd4+ {[%clk 0:00:06]}  Kc5 {[%clk 0:00:05]} 59. Rf4 {[%clk 0:00:07]}  g5 {[%clk 0:00:04]} 60. Rf5 {[%clk 0:00:06]}  Kd4 {[%clk 0:00:04]} 61. Kg1 {[%clk 0:00:06]}  Rxf2 {[%clk 0:00:02]} 62. Kxf2 {[%clk 0:00:07]}  gxh4 {[%clk 0:00:03]} 63. gxh4 {[%clk 0:00:07]}  Ke4 {[%clk 0:00:03]} 64. Rh5 {[%clk 0:00:07]}  Ng4+ {[%clk 0:00:03]} 65. Kg3 {[%clk 0:00:07]}  Nf6 {[%clk 0:00:04]} 66. Ra5 {[%clk 0:00:07]}  h6 {[%clk 0:00:03]} 67. Ra6 {[%clk 0:00:04]}  Kf5 {[%clk 0:00:03]} 68. Ra5+ {[%clk 0:00:05]}  Kg6 {[%clk 0:00:02]} 69. Kf4 {[%clk 0:00:05]}  Nh5+ {[%clk 0:00:02]} 70. Ke5 {[%clk 0:00:05]}  Ng3 {[%clk 0:00:02]} 71. Ke6 {[%clk 0:00:05]}  Ne2 {[%clk 0:00:01]} 72. Ra2 {[%clk 0:00:04]}  Nf4+ {[%clk 0:00:01]} 73. Ke5 {[%clk 0:00:04]}  Nd3+ {[%clk 0:00:01]} 74. Ke4 {[%clk 0:00:04]}  Nc5+ {[%clk 0:00:02]} 75. Kf4 {[%clk 0:00:04]}  Ne6+ {[%clk 0:00:02]} 76. Kg4 {[%clk 0:00:03]}  h5+ {[%clk 0:00:02]} 77. Kg3 {[%clk 0:00:03]}  Nd4 {[%clk 0:00:02]} 78. Ra6+ {[%clk 0:00:03]}  Kg7 {[%clk 0:00:03]} 79. Kf4 {[%clk 0:00:02]} 1-0


[Site "https://www.chess.com"]

[Event "Titled Tuesday Blitz November 08 Early 2022"]
[White "Schmidt, Tobias"]
[Black "Gheorghiu, Calin"]
[WhiteFideId "1271683"]
[BlackFideId "1200305"]
[WhiteElo "2328"]
[BlackElo "2225"]
[Result "0-1"]
[Round "09"]
[TimeControl "180+1"]
[Date "2022.11.09"]
[WhiteClock "0:00:47"]
[BlackClock "0:01:46"]

1. d3 {[%clk 0:03:00]}  d5 {[%clk 0:02:58]} 2. Nf3 {[%clk 0:02:59]}  c5 {[%clk 0:02:55]} 3. g3 {[%clk 0:02:58]}  Nc6 {[%clk 0:02:56]} 4. Bg2 {[%clk 0:02:58]}  e5 {[%clk 0:02:56]} 5. Nbd2 {[%clk 0:02:58]}  f6 {[%clk 0:02:55]} 6. e4 {[%clk 0:02:53]}  d4 {[%clk 0:02:55]} 7. a4 {[%clk 0:02:50]}  Be6 {[%clk 0:02:54]} 8. O-O {[%clk 0:02:48]}  Qd7 {[%clk 0:02:53]} 9. a5 {[%clk 0:02:35]}  g5 {[%clk 0:02:48]} 10. h4 {[%clk 0:02:31]}  h6 {[%clk 0:02:40]} 11. Ne1 {[%clk 0:02:25]}  Nge7 {[%clk 0:02:36]} 12. Nc4 {[%clk 0:02:15]}  O-O-O {[%clk 0:02:34]} 13. c3 {[%clk 0:02:04]}  gxh4 {[%clk 0:02:33]} 14. gxh4 {[%clk 0:02:03]}  Rg8 {[%clk 0:02:32]} 15. Kh1 {[%clk 0:01:56]}  Bg4 {[%clk 0:02:23]} 16. Bf3 {[%clk 0:01:42]}  Bh3 {[%clk 0:02:10]} 17. Rg1 {[%clk 0:01:39]}  Rxg1+ {[%clk 0:02:09]} 18. Kxg1 {[%clk 0:01:39]}  Ng6 {[%clk 0:02:10]} 19. h5 {[%clk 0:01:30]}  Nh4 {[%clk 0:02:09]} 20. Kh2 {[%clk 0:01:27]}  Be7 {[%clk 0:02:06]} 21. Bxh6 {[%clk 0:01:20]}  Rg8 {[%clk 0:02:04]} 22. Bd2 {[%clk 0:01:14]}  Bf1 {[%clk 0:01:50]} 23. Bg4 {[%clk 0:00:51]}  Rxg4 {[%clk 0:01:47]} 24. Nf3 {[%clk 0:00:47]}  Rg2+ {[%clk 0:01:46]} 0-1


[Site "https://www.chess.com"]

[Event "Titled Tuesday Blitz November 08 Early 2022"]
[White "Shuvalova, Polina"]
[Black "Urazayev, Arystanbek"]
[WhiteFideId "24171760"]
[BlackFideId "13709810"]
[WhiteElo "2659"]
[BlackElo "2861"]
[Result "0-1"]
[Round "09"]
[TimeControl "180+1"]
[Date "2022.11.09"]
[WhiteClock "0:00:01"]
[BlackClock "0:00:04"]

1. d4 {[%clk 0:02:49]}  d5 {[%clk 0:02:59]} 2. Nf3 {[%clk 0:02:44]}  e6 {[%clk 0:02:57]} 3. Bf4 {[%clk 0:02:44]}  c5 {[%clk 0:02:56]} 4. e3 {[%clk 0:02:44]}  Nc6 {[%clk 0:02:56]} 5. Nbd2 {[%clk 0:02:44]}  Nf6 {[%clk 0:02:57]} 6. c3 {[%clk 0:02:43]}  Nh5 {[%clk 0:02:57]} 7. Bg5 {[%clk 0:02:43]}  Qb6 {[%clk 0:02:57]} 8. Ne5 {[%clk 0:02:35]}  Nxe5 {[%clk 0:02:31]} 9. dxe5 {[%clk 0:02:35]}  g6 {[%clk 0:02:30]} 10. Be2 {[%clk 0:02:34]}  Ng7 {[%clk 0:02:11]} 11. c4 {[%clk 0:02:29]}  Be7 {[%clk 0:02:07]} 12. Bxe7 {[%clk 0:02:27]}  Kxe7 {[%clk 0:02:07]} 13. Nb3 {[%clk 0:02:18]}  Rd8 {[%clk 0:02:07]} 14. Qc1 {[%clk 0:02:07]}  Qb4+ {[%clk 0:02:07]} 15. Kf1 {[%clk 0:02:03]}  dxc4 {[%clk 0:02:07]} 16. Qxc4 {[%clk 0:01:58]}  Qxc4 {[%clk 0:02:06]} 17. Bxc4 {[%clk 0:01:59]}  b6 {[%clk 0:02:06]} 18. Ke2 {[%clk 0:01:51]}  Bb7 {[%clk 0:01:59]} 19. f3 {[%clk 0:01:52]}  Bd5 {[%clk 0:01:59]} 20. Rac1 {[%clk 0:01:49]}  Bxc4+ {[%clk 0:01:55]} 21. Rxc4 {[%clk 0:01:49]}  Rd5 {[%clk 0:01:56]} 22. f4 {[%clk 0:01:47]}  Rad8 {[%clk 0:01:54]} 23. g4 {[%clk 0:01:45]}  Ne8 {[%clk 0:01:54]} 24. h4 {[%clk 0:01:42]}  Ng7 {[%clk 0:01:40]} 25. Rc2 {[%clk 0:01:03]}  h5 {[%clk 0:01:38]} 26. gxh5 {[%clk 0:01:03]}  Nxh5 {[%clk 0:01:38]} 27. Kf3 {[%clk 0:01:02]}  a5 {[%clk 0:01:30]} 28. Rhh2 {[%clk 0:01:01]}  a4 {[%clk 0:01:30]} 29. Nd2 {[%clk 0:01:01]}  b5 {[%clk 0:01:28]} 30. b3 {[%clk 0:00:58]}  axb3 {[%clk 0:01:27]} 31. axb3 {[%clk 0:00:59]}  Rc8 {[%clk 0:01:11]} 32. Ne4 {[%clk 0:00:58]}  Ng7 {[%clk 0:01:05]} 33. Rc3 {[%clk 0:00:56]}  Nf5 {[%clk 0:00:59]} 34. h5 {[%clk 0:00:50]}  b4 {[%clk 0:00:59]} 35. Rc1 {[%clk 0:00:42]}  Rd3 {[%clk 0:00:59]} 36. Nd6 {[%clk 0:00:36]}  Nxd6 {[%clk 0:00:45]} 37. exd6+ {[%clk 0:00:37]}  Kxd6 {[%clk 0:00:46]} 38. hxg6 {[%clk 0:00:29]}  fxg6 {[%clk 0:00:46]} 39. Rb1 {[%clk 0:00:28]}  e5 {[%clk 0:00:29]} 40. Ke4 {[%clk 0:00:25]}  Rd5 {[%clk 0:00:22]} 41. Rh6 {[%clk 0:00:26]}  Rg8 {[%clk 0:00:18]} 42. Rg1 {[%clk 0:00:24]}  Rd2 {[%clk 0:00:14]} 43. Rgxg6+ {[%clk 0:00:24]}  Rxg6 {[%clk 0:00:15]} 44. Rxg6+ {[%clk 0:00:25]}  Ke7 {[%clk 0:00:15]} 45. Kxe5 {[%clk 0:00:25]}  Rd3 {[%clk 0:00:15]} 46. e4 {[%clk 0:00:25]}  Rxb3 {[%clk 0:00:15]} 47. f5 {[%clk 0:00:25]}  Rf3 {[%clk 0:00:15]} 48. Rc6 {[%clk 0:00:23]}  Rc3 {[%clk 0:00:13]} 49. f6+ {[%clk 0:00:22]}  Kf7 {[%clk 0:00:13]} 50. Rc7+ {[%clk 0:00:22]}  Kg6 {[%clk 0:00:11]} 51. Rg7+ {[%clk 0:00:22]}  Kh6 {[%clk 0:00:11]} 52. Rg4 {[%clk 0:00:21]}  b3 {[%clk 0:00:10]} 53. f7 {[%clk 0:00:19]}  Rf3 {[%clk 0:00:11]} 54. Ke6 {[%clk 0:00:17]}  b2 {[%clk 0:00:09]} 55. Rg1 {[%clk 0:00:17]}  c4 {[%clk 0:00:09]} 56. Ke7 {[%clk 0:00:10]}  c3 {[%clk 0:00:09]} 57. Rh1+ {[%clk 0:00:05]}  Kg5 {[%clk 0:00:09]} 58. Rg1+ {[%clk 0:00:05]}  Kh4 {[%clk 0:00:10]} 59. Rh1+ {[%clk 0:00:05]}  Kg3 {[%clk 0:00:10]} 60. Rg1+ {[%clk 0:00:05]}  Kh2 {[%clk 0:00:11]} 61. Rb1 {[%clk 0:00:06]}  Kg3 {[%clk 0:00:07]} 62. Rg1+ {[%clk 0:00:02]}  Kf2 {[%clk 0:00:07]} 63. Rb1 {[%clk 0:00:02]}  Ke3 {[%clk 0:00:06]} 64. e5 {[%clk 0:00:01]}  c2 {[%clk 0:00:06]} 65. Rxb2 {[%clk 0:00:01]}  Rxf7+ {[%clk 0:00:04]} 66. Kxf7 {[%clk 0:00:01]}  c1=Q {[%clk 0:00:05]} 67. Rb6 {[%clk 0:00:01]}  Qc4+ {[%clk 0:00:04]} 0-1


[Site "https://www.chess.com"]

[Event "Titled Tuesday Blitz November 08 Early 2022"]
[White "Sibilio, Mario"]
[Black "Kodinets, Konstantin L."]
[WhiteFideId "800422"]
[BlackFideId "4122011"]
[WhiteElo "2251"]
[BlackElo "2447"]
[Result "1-0"]
[Round "09"]
[TimeControl "180+1"]
[Date "2022.11.09"]
[WhiteClock "0:00:09"]
[BlackClock "0:00:41"]

1. d4 {[%clk 0:03:00]}  d6 {[%clk 0:02:57]} 2. Nf3 {[%clk 0:02:55]}  Nf6 {[%clk 0:02:57]} 3. g3 {[%clk 0:02:52]}  Nbd7 {[%clk 0:02:58]} 4. c4 {[%clk 0:02:50]}  c6 {[%clk 0:02:58]} 5. Nc3 {[%clk 0:02:49]}  e5 {[%clk 0:02:59]} 6. d5 {[%clk 0:02:45]}  cxd5 {[%clk 0:02:57]} 7. cxd5 {[%clk 0:02:45]}  Be7 {[%clk 0:02:57]} 8. Bg2 {[%clk 0:02:43]}  O-O {[%clk 0:02:57]} 9. O-O {[%clk 0:02:44]}  a6 {[%clk 0:02:57]} 10. a4 {[%clk 0:02:42]}  Ne8 {[%clk 0:02:53]} 11. e4 {[%clk 0:02:40]}  g6 {[%clk 0:02:51]} 12. Bh6 {[%clk 0:02:38]}  Ng7 {[%clk 0:02:50]} 13. Qd2 {[%clk 0:02:37]}  Nf6 {[%clk 0:02:44]} 14. h3 {[%clk 0:02:35]}  Kh8 {[%clk 0:02:42]} 15. a5 {[%clk 0:02:28]}  Ng8 {[%clk 0:02:42]} 16. Be3 {[%clk 0:02:27]}  Bd7 {[%clk 0:02:42]} 17. Na4 {[%clk 0:02:13]}  Bxa4 {[%clk 0:02:40]} 18. Rxa4 {[%clk 0:02:11]}  f5 {[%clk 0:02:39]} 19. Bb6 {[%clk 0:01:58]}  Qd7 {[%clk 0:02:39]} 20. exf5 {[%clk 0:01:52]}  gxf5 {[%clk 0:02:36]} 21. Rc4 {[%clk 0:01:49]}  Rac8 {[%clk 0:02:31]} 22. Rfc1 {[%clk 0:01:38]}  Rxc4 {[%clk 0:02:30]} 23. Rxc4 {[%clk 0:01:38]}  Bd8 {[%clk 0:02:25]} 24. Ng5 {[%clk 0:01:32]}  h6 {[%clk 0:02:19]} 25. Ne6 {[%clk 0:01:29]}  Nxe6 {[%clk 0:02:12]} 26. dxe6 {[%clk 0:01:27]}  Qxe6 {[%clk 0:02:13]} 27. Bd5 {[%clk 0:01:24]}  Qf6 {[%clk 0:02:11]} 28. Bxb7 {[%clk 0:01:02]}  Bxb6 {[%clk 0:01:55]} 29. axb6 {[%clk 0:01:01]}  Rb8 {[%clk 0:01:55]} 30. Bd5 {[%clk 0:00:42]}  Ne7 {[%clk 0:01:48]} 31. b7 {[%clk 0:00:39]}  e4 {[%clk 0:01:38]} 32. Rc7 {[%clk 0:00:37]}  Kg7 {[%clk 0:01:30]} 33. Bb3 {[%clk 0:00:13]}  Rd8 {[%clk 0:01:00]} 34. Qc3 {[%clk 0:00:12]}  Qxc3 {[%clk 0:00:49]} 35. Rxe7+ {[%clk 0:00:11]}  Kf6 {[%clk 0:00:47]} 36. Rf7+ {[%clk 0:00:11]}  Kg6 {[%clk 0:00:47]} 37. bxc3 {[%clk 0:00:11]}  d5 {[%clk 0:00:47]} 38. Rc7 {[%clk 0:00:11]}  d4 {[%clk 0:00:45]} 39. cxd4 {[%clk 0:00:10]}  Rb8 {[%clk 0:00:44]} 40. Bd5 {[%clk 0:00:09]}  a5 {[%clk 0:00:44]} 41. Rc8 {[%clk 0:00:09]}  Rxb7 {[%clk 0:00:44]} 42. Bxb7 {[%clk 0:00:09]}  a4 {[%clk 0:00:45]} 43. Bd5 {[%clk 0:00:09]}  h5 {[%clk 0:00:43]} 44. Rc6+ {[%clk 0:00:10]}  Kg5 {[%clk 0:00:41]} 45. h4+ {[%clk 0:00:09]}  Kg4 {[%clk 0:00:41]} 46. Kg2 {[%clk 0:00:09]}  f4 {[%clk 0:00:41]} 47. Be6# {[%clk 0:00:09]} 1-0


[Site "https://www.chess.com"]